Workbook

Sheet Uscite
B3: Festa della presentazione del prodotto
B4: DETTAGLI SPESE
B7: Spese totali | C7: Stimate | D7: Effettivo | F7: Programma | G7: Stimate | H7: Effettivo
C8: =SiteExpenses[[#Totals],[Stimate]]+DecorationsExpenses[[#Totals],[Stimate]]+PublicityExpenses[[#Totals],[Stimate]]+MiscellaneousExpenses[[#Totals],[Stimate]]+RefreshmentsExpenses[[#Totals],[Stimate]]+ProgramExpenses[[#Totals],[Stimate]]+PrizesExpenses[[#Totals],[Stimate]] -> € 2,090.00 | D8: =SiteExpenses[[#Totals],[Effettive]]+DecorationsExpenses[[#Totals],[Effettive]]+PublicityExpenses[[#Totals],[Effettive]]+ProgramExpenses[[#Totals],[Effettivo]]+RefreshmentsExpenses[[#Totals],[Effettivo]]+MiscellaneousExpenses[[#Totals],[Effettivo]]+PrizesExpenses[[#Totals],[Effettive]] -> € 1,640.00 | F8: Musicisti | G8: € 750.00 | H8: € 700.00
F9: Relatori | G9: € 150.00 | H9: € 0.00
F10: Viaggio
B11: Sito | C11: Stimate | D11: Effettive | F11: Hotel
B12: Spese per sala e hall | C12: € 500.00 | D12: € 450.00 | F12: Altro
B13: Personale del sito | F13: Totale | G13: =SUBTOTAL(109,ProgramExpenses[Stimate]) -> € 900.00 | H13: =SUBTOTAL(109,ProgramExpenses[Effettivo]) -> € 700.00
B14: Apparecchiature
B15: Tavoli e sedie | F15: Pubblicità | G15: Stimate | H15: Effettive
B16: Totale | C16: =SUBTOTAL(109,SiteExpenses[Stimate]) -> € 500.00 | D16: =SUBTOTAL(109,SiteExpenses[Effettive]) -> € 450.00 | F16: Grafica
F17: Fotocopie / stampa | G17: € 20.00 | H17: € 20.00
B18: Decorazioni | C18: Stimate | D18: Effettive | F18: Affrancatura
B19: Fiori | C19: € 200.00 | D19: € 100.00 | F19: Totale | G19: =SUBTOTAL(109,PublicityExpenses[Stimate]) -> € 20.00 | H19: =SUBTOTAL(109,PublicityExpenses[Effettive]) -> € 20.00
B20: Candele
B21: Illuminazione | F21: Premi | G21: Stimate | H21: Effettive
B22: Palloncini | F22: Nastri / trofei
B23: Forniture carta | F23: Regali | G23: € 100.00 | H23: € 100.00
B24: Totale | C24: =SUBTOTAL(109,DecorationsExpenses[Stimate]) -> € 200.00 | D24: =SUBTOTAL(109,DecorationsExpenses[Effettive]) -> € 100.00 | F24: Totale | G24: =SUBTOTAL(109,PrizesExpenses[Stimate]) -> € 100.00 | H24: =SUBTOTAL(109,PrizesExpenses[Effettive]) -> € 100.00
B26: Rinfresco | C26: Stimate | D26: Effettivo | F26: Varie | G26: Stimate | H26: Effettivo
B27: Cibo | F27: Telefono | G27: € 50.00 | H27: € 50.00
B28: Bevande | C28: € 220.00 | D28: € 120.00 | F28: Trasporti | G28: € 20.00 | H28: € 20.00
B29: Biancheria da tavola | C29: € 80.00 | D29: € 80.00 | F29: Cancelleria
B30: Personale e mance | F30: Servizi fax
B31: Totale | C31: =SUBTOTAL(109,RefreshmentsExpenses[Stimate]) -> € 300.00 | D31: =SUBTOTAL(109,RefreshmentsExpenses[Effettivo]) -> € 200.00 | F31: Totale | G31: =SUBTOTAL(109,MiscellaneousExpenses[Stimate]) -> € 70.00 | H31: =SUBTOTAL(109,MiscellaneousExpenses[Effettivo]) -> € 70.00

Sheet Entrate
B3: =Uscite!B3 -> Festa della presentazione del prodotto
B4: DETTAGLI REDDITO
B7: Totale entrate | C7: Stimate | D7: Effettivo
C8: =SUM(Ammissioni[[#Totals],[Entrate stimate]],AdsInProgram[[#Totals],[Entrate stimate]],ExhibitorsAndVendors[[#Totals],[Entrate stimate]],SaleOfItems[[#Totals],[Entrate stimate]]) -> € 4,450.00 | D8: =SUM(Ammissioni[[#Totals],[Entrate effettive]],AdsInProgram[[#Totals],[Entrate effettive]],ExhibitorsAndVendors[[#Totals],[Entrate effettive]],SaleOfItems[[#Totals],[Entrate effettive]]) -> € 4,170.00
B10: Ammissioni
B11: Tipo | C11: Stimate | D11: Effettive | E11: Prezzo | F11: Entrate stimate | G11: Entrate effettive
B12: Adulti | C12: 30 | D12: 25 | E12: € 20.00 | F12: =C12*E12 -> € 600.00 | G12: =D12*E12 -> € 500.00
B13: Figli | C13: 20 | D13: 22 | E13: € 10.00 | F13: =C13*E13 -> € 200.00 | G13: =D13*E13 -> € 220.00
B14: Altro | C14: 10 | D14: 10 | E14: € 10.00 | F14: =C14*E14 -> € 100.00 | G14: =D14*E14 -> € 100.00
B15: Totale | C15: =SUBTOTAL(109,Ammissioni[Stimate]) -> 60 | D15: =SUBTOTAL(109,Ammissioni[Effettive]) -> 57 | F15: =SUBTOTAL(109,Ammissioni[Entrate stimate]) -> € 900.00 | G15: =SUBTOTAL(109,Ammissioni[Entrate effettive]) -> € 820.00
B17: Annunci in programma
B18: Tipo | C18: Stimate | D18: Effettive | E18: Prezzo | F18: Entrate stimate | G18: Entrate effettive
B19: Copertine | C19: 2 | D19: 4 | E19: € 50.00 | F19: =C19*E19 -> € 100.00 | G19: =D19*E19 -> € 200.00
B20: Mezze pagine | C20: 2 | D20: 2 | E20: € 30.00 | F20: =C20*E20 -> € 60.00 | G20: =D20*E20 -> € 60.00
B21: Quarti di pagina | C21: 2 | D21: 2 | E21: € 20.00 | F21: =C21*E21 -> € 40.00 | G21: =D21*E21 -> € 40.00
B22: Totale | C22: =SUBTOTAL(109,AdsInProgram[Stimate]) -> 6 | D22: =SUBTOTAL(109,AdsInProgram[Effettive]) -> 8 | F22: =SUBTOTAL(109,AdsInProgram[Entrate stimate]) -> € 200.00 | G22: =SUBTOTAL(109,AdsInProgram[Entrate effettive]) -> € 300.00
B24: Espositori / fornitori
B25: Tipo | C25: Stimate | D25: Effettive | E25: Prezzo | F25: Entrate stimate | G25: Entrate effettive
B26: Stand grandi | C26: 5 | D26: 5 | E26: € 300.00 | F26: =C26*E26 -> € 1,500.00 | G26: =D26*E26 -> € 1,500.00
B27: Stand medi | C27: 5 | D27: 4 | E27: € 200.00 | F27: =C27*E27 -> € 1,000.00 | G27: =D27*E27 -> € 800.00
B28: Stand piccoli | C28: 1 | D28: 0 | E28: € 100.00 | F28: =C28*E28 -> € 100.00 | G28: =D28*E28 -> € 0.00
B29: Totale | C29: =SUBTOTAL(109,ExhibitorsAndVendors[Stimate]) -> 11 | D29: =SUBTOTAL(109,ExhibitorsAndVendors[Effettive]) -> 9 | F29: =SUBTOTAL(109,ExhibitorsAndVendors[Entrate stimate]) -> € 2,600.00 | G29: =SUBTOTAL(109,ExhibitorsAndVendors[Entrate effettive]) -> € 2,300.00
B31: Vendita di articoli
B32: Tipo | C32: Stimate | D32: Effettivo | E32: Prezzo | F32: Entrate stimate | G32: Entrate effettive
B33: Elemento 1 | C33: 2 | D33: 2 | E33: € 150.00 | F33: =C33*E33 -> € 300.00 | G33: =D33*E33 -> € 300.00
B34: Elemento 2 | C34: 5 | D34: 5 | E34: € 50.00 | F34: =C34*E34 -> € 250.00 | G34: =D34*E34 -> € 250.00
B35: Elemento 3 | C35: 5 | D35: 5 | E35: € 20.00 | F35: =C35*E35 -> € 100.00 | G35: =D35*E35 -> € 100.00
B36: Elemento 4 | C36: 5 | D36: 5 | E36: € 20.00 | F36: =C36*E36 -> € 100.00 | G36: =D36*E36 -> € 100.00
B37: Totale | C37: =SUBTOTAL(109,SaleOfItems[Stimate]) -> 17 | D37: =SUBTOTAL(109,SaleOfItems[Effettivo]) -> 17 | F37: =SUBTOTAL(109,SaleOfItems[Entrate stimate]) -> € 750.00 | G37: =SUBTOTAL(109,SaleOfItems[Entrate effettive]) -> € 750.00

Sheet Riepilogo profitti e perdite
B3: =Uscite!B3 -> Festa della presentazione del prodotto
B4: RIEPILOGO PROFITTI + PERDITE
B7: Riepilogo delle spese | C7: Stimate | D7: Effettivo | F7: Spese effettive | L7: Classificazione | M7: Spese | N7: Stimate | O7: Effettivo | P7: Valore di classificazione
B8: =VLOOKUP(1,$L$8:$O$14,2,FALSE) -> Programma | C8: =VLOOKUP(1,$L$8:$O$14,3,FALSE) -> € 900.00 | D8: =VLOOKUP(1,$L$8:$O$14,4,FALSE) -> € 700.00 | L8: =_xlfn.RANK.AVG(P8,$P$8:$P$14) -> 2 | M8: Sito | N8: =SiteExpenses[[#Totals],[Stimate]] -> € 500 | O8: =SiteExpenses[[#Totals],[Effettive]] -> € 450 | P8: =O8+ROW(O8)/10000 -> 450.0008
B9: =VLOOKUP(2,$L$8:$O$14,2,FALSE) -> Sito | C9: =VLOOKUP(2,$L$8:$O$14,3,FALSE) -> € 500.00 | D9: =VLOOKUP(2,$L$8:$O$14,4,FALSE) -> € 450.00 | L9: 5 | M9: Decorazioni | N9: =DecorationsExpenses[[#Totals],[Stimate]] -> € 200 | O9: =DecorationsExpenses[[#Totals],[Effettive]] -> € 100 | P9: =O9+ROW(O9)/10000 -> 100.0009
B10: =VLOOKUP(3,$L$8:$O$14,2,FALSE) -> Rinfresco | C10: =VLOOKUP(3,$L$8:$O$14,3,FALSE) -> € 300.00 | D10: =VLOOKUP(3,$L$8:$O$14,4,FALSE) -> € 200.00 | L10: 3 | M10: Rinfresco | N10: =RefreshmentsExpenses[[#Totals],[Stimate]] -> € 300 | O10: =RefreshmentsExpenses[[#Totals],[Effettivo]] -> € 200 | P10: 200.0010
B11: =VLOOKUP(4,$L$8:$O$14,2,FALSE) -> Premi | C11: =VLOOKUP(4,$L$8:$O$14,3,FALSE) -> € 100.00 | D11: =VLOOKUP(4,$L$8:$O$14,4,FALSE) -> € 100.00 | L11: 1 | M11: Programma | N11: =ProgramExpenses[[#Totals],[Stimate]] -> € 900 | O11: =ProgramExpenses[[#Totals],[Effettivo]] -> € 700 | P11: 700.0011
B12: =VLOOKUP(5,$L$8:$O$14,2,FALSE) -> Decorazioni | C12: =VLOOKUP(5,$L$8:$O$14,3,FALSE) -> € 200.00 | D12: =VLOOKUP(5,$L$8:$O$14,4,FALSE) -> € 100.00 | L12: 7 | M12: Pubblicità | N12: =PublicityExpenses[[#Totals],[Stimate]] -> € 20 | O12: =PublicityExpenses[[#Totals],[Effettive]] -> € 20 | P12: 20.0012
B13: =VLOOKUP(6,$L$8:$O$14,2,FALSE) -> Varie | C13: =VLOOKUP(6,$L$8:$O$14,3,FALSE) -> € 70.00 | D13: =VLOOKUP(6,$L$8:$O$14,4,FALSE) -> € 70.00 | L13: 4 | M13: Premi | N13: =PrizesExpenses[[#Totals],[Stimate]] -> € 100 | O13: =PrizesExpenses[[#Totals],[Effettive]] -> € 100 | P13: 100.0013
B14: =VLOOKUP(7,$L$8:$O$14,2,FALSE) -> Pubblicità | C14: =VLOOKUP(7,$L$8:$O$14,3,FALSE) -> € 20.00 | D14: =VLOOKUP(7,$L$8:$O$14,4,FALSE) -> € 20.00 | L14: 6 | M14: Varie | N14: =MiscellaneousExpenses[[#Totals],[Stimate]] -> € 70 | O14: =MiscellaneousExpenses[[#Totals],[Effettivo]] -> € 70 | P14: 70.0014
B15: Totale | C15: =SUBTOTAL(109,RiepilogoSpese[Stimate]) -> € 2,090.00 | D15: =SUBTOTAL(109,RiepilogoSpese[Effettivo]) -> € 1,640.00
B17: Riepilogo delle entrate | C17: Stimate | D17: Effettive | F17: Entrate effettive | L17: Classificazione | M17: Entrate | N17: Stimate | O17: Effettivo | P17: Valore di classificazione
B18: =VLOOKUP(1,$L$18:$O$21,2,FALSE) -> Espositori / fornitori | C18: =VLOOKUP(1,$L$18:$O$21,3,FALSE) -> € 2,600.00 | D18: =VLOOKUP(1,$L$18:$O$21,4,FALSE) -> € 2,300.00 | L18: =_xlfn.RANK.AVG(P18,$P$18:$P$21) -> 2 | M18: Ammissioni | N18: =Ammissioni[[#Totals],[Entrate stimate]] -> € 900 | O18: =Ammissioni[[#Totals],[Entrate effettive]] -> € 820 | P18: =O18+ROW(O18)/10000 -> 820.0018
B19: =VLOOKUP(2,$L$18:$O$21,2,FALSE) -> Ammissioni | C19: =VLOOKUP(2,$L$18:$O$21,3,FALSE) -> € 900.00 | D19: =VLOOKUP(2,$L$18:$O$21,4,FALSE) -> € 820.00 | L19: =_xlfn.RANK.AVG(P19,$P$18:$P$21) -> 4 | M19: Annunci in programma | N19: =AdsInProgram[[#Totals],[Entrate stimate]] -> € 200 | O19: =AdsInProgram[[#Totals],[Entrate effettive]] -> € 300 | P19: 300.0019
B20: Vendite di articoli | C20: =VLOOKUP(3,$L$18:$O$21,3,FALSE) -> € 750.00 | D20: =VLOOKUP(3,$L$18:$O$21,4,FALSE) -> € 750.00 | L20: 1 | M20: Espositori / fornitori | N20: =ExhibitorsAndVendors[[#Totals],[Entrate stimate]] -> € 2,600 | O20: =ExhibitorsAndVendors[[#Totals],[Entrate effettive]] -> € 2,300 | P20: 2,300.0020
B21: =VLOOKUP(4,$L$18:$O$21,2,FALSE) -> Annunci in programma | C21: =VLOOKUP(4,$L$18:$O$21,3,FALSE) -> € 200.00 | D21: =VLOOKUP(4,$L$18:$O$21,4,FALSE) -> € 300.00 | L21: 3 | M21: Vendite di articoli | N21: =SaleOfItems[[#Totals],[Entrate stimate]] -> € 750 | O21: =SaleOfItems[[#Totals],[Entrate effettive]] -> € 750 | P21: 750.0021
B22: Totale | C22: =SUBTOTAL(109,RiepilogoEntrate[Stimate]) -> € 4,450.00 | D22: =SUBTOTAL(109,RiepilogoEntrate[Effettive]) -> € 4,170.00
B24: Riepilogo profitti e perdite | C24: Stimate | D24: Effettivo
B25: Totale entrate | C25: =RiepilogoEntrate[[#Totals],[Stimate]] -> € 4,450.00 | D25: =RiepilogoEntrate[[#Totals],[Effettive]] -> € 4,170.00
B26: Totale spese | C26: =RiepilogoSpese[[#Totals],[Stimate]] -> € 2,090.00 | D26: =RiepilogoSpese[[#Totals],[Effettivo]] -> € 1,640.00
B27: Profitto o (perdita) | C27: =C25-C26 -> € 2,360.00 | D27: =D25-D26 -> € 2,530.00
B29: Rapporto tra spese e profitti (perdita) | E29: Costi stimati e costi effettivi
